Workbook

Sheet Umsätze
A1: Umsatzübersicht 1. - 3. Quartal
A3: Vorname | B3: Zuname | C3: 1. Quartal | D3: 2. Quartal | E3: 3. Quartal | F3: Summe
A4: Almut | B4: Altenburger | C4: 12014 | D4: 6443 | E4: 21382 | F4: =SUM(Tabelle1[[#This Row],[1. Quartal]:[3. Quartal]]) -> 39839
A5: Christine | B5: Illetschko | C5: 24629 | D5: 19364 | E5: 15011 | F5: =SUM(Tabelle1[[#This Row],[1. Quartal]:[3. Quartal]]) -> 59004
A6: Christine | B6: Mylko | C6: 18786 | D6: 27201 | E6: 31076 | F6: =SUM(Tabelle1[[#This Row],[1. Quartal]:[3. Quartal]]) -> 77063
A7: Edeltraud | B7: Obermüller | C7: 8592 | D7: 9349 | E7: 30059 | F7: =SUM(Tabelle1[[#This Row],[1. Quartal]:[3. Quartal]]) -> 48000
A8: Elisabeth | B8: Schreiner | C8: 16900 | D8: 13678 | E8: 13482 | F8: =SUM(Tabelle1[[#This Row],[1. Quartal]:[3. Quartal]]) -> 44060
A9: Hildegart | B9: Sentz | C9: 8625 | D9: 20156 | E9: 6109 | F9: =SUM(Tabelle1[[#This Row],[1. Quartal]:[3. Quartal]]) -> 34890
A10: Marianne | B10: Wenigwieser | C10: 12601 | D10: 19243 | E10: 11459 | F10: =SUM(Tabelle1[[#This Row],[1. Quartal]:[3. Quartal]]) -> 43303
A11: Martina | B11: Winkler | C11: 20132 | D11: 8868 | E11: 16590 | F11: =SUM(Tabelle1[[#This Row],[1. Quartal]:[3. Quartal]]) -> 45590
A12: Melitta | B12: Brunner | C12: 16333 | D12: 23587 | E12: 23711 | F12: =SUM(Tabelle1[[#This Row],[1. Quartal]:[3. Quartal]]) -> 63631
A13: Paula | B13: Fiala | C13: 20505 | D13: 15639 | E13: 21211 | F13: =SUM(Tabelle1[[#This Row],[1. Quartal]:[3. Quartal]]) -> 57355
A14: Sabine | B14: Hoffmann | C14: 22732 | D14: 29152 | E14: 14762 | F14: =SUM(Tabelle1[[#This Row],[1. Quartal]:[3. Quartal]]) -> 66646
A15: Susanne | B15: Hütter | C15: 8216 | D15: 21307 | E15: 17446 | F15: =SUM(Tabelle1[[#This Row],[1. Quartal]:[3. Quartal]]) -> 46969
A16: Ursula | B16: Jordan | C16: 10794 | D16: 17473 | E16: 30320 | F16: =SUM(Tabelle1[[#This Row],[1. Quartal]:[3. Quartal]]) -> 58587
A17: Barbara | B17: Kienesberger | C17: 14415 | D17: 12483 | E17: 10719 | F17: =SUM(Tabelle1[[#This Row],[1. Quartal]:[3. Quartal]]) -> 37617
A18: Erika | B18: Krenmaier | C18: 23656 | D18: 23229 | E18: 20742 | F18: =SUM(Tabelle1[[#This Row],[1. Quartal]:[3. Quartal]]) -> 67627
A19: Gabriele | B19: Mittermayr | C19: 25470 | D19: 26679 | E19: 17147 | F19: =SUM(Tabelle1[[#This Row],[1. Quartal]:[3. Quartal]]) -> 69296
A20: Gabrielle | B20: Neugebauer | C20: 12044 | D20: 7774 | E20: 18011 | F20: =SUM(Tabelle1[[#This Row],[1. Quartal]:[3. Quartal]]) -> 37829
A21: Margarethe | B21: Pasterniak | C21: 25229 | D21: 25589 | E21: 17934 | F21: =SUM(Tabelle1[[#This Row],[1. Quartal]:[3. Quartal]]) -> 68752
A22: Marianne | B22: Ritzberger | C22: 7738 | D22: 8866 | E22: 11796 | F22: =SUM(Tabelle1[[#This Row],[1. Quartal]:[3. Quartal]]) -> 28400
A23: Petra | B23: Steinmaurer | C23: 9739 | D23: 23368 | E23: 31124 | F23: =SUM(Tabelle1[[#This Row],[1. Quartal]:[3. Quartal]]) -> 64231
A24: Sonja | B24: Wintersteiger | C24: 22717 | D24: 29495 | E24: 21104 | F24: =SUM(Tabelle1[[#This Row],[1. Quartal]:[3. Quartal]]) -> 73316
A25: Brigitta | B25: Zwigl | C25: 20546 | D25: 14126 | E25: 13703 | F25: =SUM(Tabelle1[[#This Row],[1. Quartal]:[3. Quartal]]) -> 48375
A26: Brigitte | B26: Birngruber | C26: 14739 | D26: 16587 | E26: 13179 | F26: =SUM(Tabelle1[[#This Row],[1. Quartal]:[3. Quartal]]) -> 44505
A27: Ingrid | B27: Czerwinski | C27: 19110 | D27: 12566 | E27: 8050 | F27: =SUM(Tabelle1[[#This Row],[1. Quartal]:[3. Quartal]]) -> 39726
A28: Sabine | B28: Halser | C28: 18063 | D28: 16913 | E28: 24453 | F28: =SUM(Tabelle1[[#This Row],[1. Quartal]:[3. Quartal]]) -> 59429
A29: Sylvia | B29: Kötter | C29: 24404 | D29: 27671 | E29: 17159 | F29: =SUM(Tabelle1[[#This Row],[1. Quartal]:[3. Quartal]]) -> 69234
A30: Beatrice | B30: Mayr | C30: 7147 | D30: 15825 | E30: 18636 | F30: =SUM(Tabelle1[[#This Row],[1. Quartal]:[3. Quartal]]) -> 41608
A31: Bettina | B31: Neuhauser | C31: 18006 | D31: 22630 | E31: 15346 | F31: =SUM(Tabelle1[[#This Row],[1. Quartal]:[3. Quartal]]) -> 55982
A32: Liselotte | B32: Öllinger | C32: 23844 | D32: 11780 | E32: 18926 | F32: =SUM(Tabelle1[[#This Row],[1. Quartal]:[3. Quartal]]) -> 54550
A33: Marianne | B33: Posch | C33: 23004 | D33: 27127 | E33: 9670 | F33: =SUM(Tabelle1[[#This Row],[1. Quartal]:[3. Quartal]]) -> 59801
A34: Gudrun | B34: Schmieder | C34: 16270 | D34: 22079 | E34: 16342 | F34: =SUM(Tabelle1[[#This Row],[1. Quartal]:[3. Quartal]]) -> 54691
A35: Hedwig | B35: Summersberger | C35: 16437 | D35: 8507 | E35: 28165 | F35: =SUM(Tabelle1[[#This Row],[1. Quartal]:[3. Quartal]]) -> 53109
A36: Ingrid | B36: Enghuber | C36: 17763 | D36: 27060 | E36: 15287 | F36: =SUM(Tabelle1[[#This Row],[1. Quartal]:[3. Quartal]]) -> 60110
A37: Irene | B37: Grohs | C37: 16081 | D37: 16738 | E37: 5853 | F37: =SUM(Tabelle1[[#This Row],[1. Quartal]:[3. Quartal]]) -> 38672
A38: Marianne | B38: Haser | C38: 15141 | D38: 18776 | E38: 5725 | F38: =SUM(Tabelle1[[#This Row],[1. Quartal]:[3. Quartal]]) -> 39642
A39: Monika | B39: Helml | C39: 9209 | D39: 29749 | E39: 28433 | F39: =SUM(Tabelle1[[#This Row],[1. Quartal]:[3. Quartal]]) -> 67391
A40: Petra | B40: Lang | C40: 8142 | D40: 19317 | E40: 26343 | F40: =SUM(Tabelle1[[#This Row],[1. Quartal]:[3. Quartal]]) -> 53802
A41: Susanne | B41: Schichl | C41: 10488 | D41: 14339 | E41: 30772 | F41: =SUM(Tabelle1[[#This Row],[1. Quartal]:[3. Quartal]]) -> 55599
A42: Annemarie | B42: Schmaranzer | C42: 16487 | D42: 21438 | E42: 9627 | F42: =SUM(Tabelle1[[#This Row],[1. Quartal]:[3. Quartal]]) -> 47552
A43: Franziska | B43: Singer | C43: 18115 | D43: 28348 | E43: 25393 | F43: =SUM(Tabelle1[[#This Row],[1. Quartal]:[3. Quartal]]) -> 71856
A44: Gundi | B44: Wilk | C44: 17042 | D44: 12885 | E44: 23412 | F44: =SUM(Tabelle1[[#This Row],[1. Quartal]:[3. Quartal]]) -> 53339
A45: Helga | B45: Hahn | C45: 10226 | D45: 23178 | E45: 15345 | F45: =SUM(Tabelle1[[#This Row],[1. Quartal]:[3. Quartal]]) -> 48749
A46: Inge | B46: Hinterbuchner | C46: 19449 | D46: 9883 | E46: 26112 | F46: =SUM(Tabelle1[[#This Row],[1. Quartal]:[3. Quartal]]) -> 55444
A47: Marlies | B47: Kastenhuber | C47: 24307 | D47: 26422 | E47: 16648 | F47: =SUM(Tabelle1[[#This Row],[1. Quartal]:[3. Quartal]]) -> 67377
A48: Michaela | B48: Krebs | C48: 16154 | D48: 16949 | E48: 16767 | F48: =SUM(Tabelle1[[#This Row],[1. Quartal]:[3. Quartal]]) -> 49870
A49: Nina | B49: Kriechbaumer | C49: 8912 | D49: 9649 | E49: 19807 | F49: =SUM(Tabelle1[[#This Row],[1. Quartal]:[3. Quartal]]) -> 38368
A50: Sandra | B50: Ofner | C50: 10655 | D50: 9405 | E50: 28157 | F50: =SUM(Tabelle1[[#This Row],[1. Quartal]:[3. Quartal]]) -> 48217
A51: Almut | B51: Rossenbeck | C51: 14306 | D51: 15815 | E51: 26932 | F51: =SUM(Tabelle1[[#This Row],[1. Quartal]:[3. Quartal]]) -> 57053
A52: Berta | B52: Schrögendorfer | C52: 6931 | D52: 12580 | E52: 10372 | F52: =SUM(Tabelle1[[#This Row],[1. Quartal]:[3. Quartal]]) -> 29883
A53: Elfride | B53: Singer | C53: 9259 | D53: 6918 | E53: 7826 | F53: =SUM(Tabelle1[[#This Row],[1. Quartal]:[3. Quartal]]) -> 24003
A54: Elsa | B54: Stütz | C54: 11001 | D54: 28573 | E54: 17181 | F54: =SUM(Tabelle1[[#This Row],[1. Quartal]:[3. Quartal]]) -> 56755
A55: Heidi | B55: Wimmer | C55: 18982 | D55: 27508 | E55: 7856 | F55: =SUM(Tabelle1[[#This Row],[1. Quartal]:[3. Quartal]]) -> 54346
A56: Helga | B56: Wöss | C56: 24182 | D56: 25304 | E56: 31355 | F56: =SUM(Tabelle1[[#This Row],[1. Quartal]:[3. Quartal]]) -> 80841
A57: Romana | B57: Angermann | C57: 18929 | D57: 18476 | E57: 8230 | F57: =SUM(Tabelle1[[#This Row],[1. Quartal]:[3. Quartal]]) -> 45635
A58: Waltraud | B58: Gerdoppler | C58: 17382 | D58: 12794 | E58: 26992 | F58: =SUM(Tabelle1[[#This Row],[1. Quartal]:[3. Quartal]]) -> 57168
A59: Wilhelmine | B59: Junghuber | C59: 17066 | D59: 16579 | E59: 17918 | F59: =SUM(Tabelle1[[#This Row],[1. Quartal]:[3. Quartal]]) -> 51563
A60: Andrea | B60: Kaiser | C60: 10542 | D60: 25256 | E60: 30534 | F60: =SUM(Tabelle1[[#This Row],[1. Quartal]:[3. Quartal]]) -> 66332
A61: Angelika | B61: Korntner | C61: 19577 | D61: 16297 | E61: 24200 | F61: =SUM(Tabelle1[[#This Row],[1. Quartal]:[3. Quartal]]) -> 60074
A62: Brigitte | B62: Bartel | C62: 17563 | D62: 10550 | E62: 16149 | F62: =SUM(Tabelle1[[#This Row],[1. Quartal]:[3. Quartal]]) -> 44262
A63: Christa | B63: Helletzmaier | C63: 20367 | D63: 28877 | E63: 23126 | F63: =SUM(Tabelle1[[#This Row],[1. Quartal]:[3. Quartal]]) -> 72370
A64: Dorothy | B64: Knoll | C64: 16337 | D64: 27954 | E64: 12891 | F64: =SUM(Tabelle1[[#This Row],[1. Quartal]:[3. Quartal]]) -> 57182
A65: Edith | B65: Leidinger | C65: 8110 | D65: 6279 | E65: 17851 | F65: =SUM(Tabelle1[[#This Row],[1. Quartal]:[3. Quartal]]) -> 32240
A66: Gabi | B66: Posch | C66: 20927 | D66: 30790 | E66: 31296 | F66: =SUM(Tabelle1[[#This Row],[1. Quartal]:[3. Quartal]]) -> 83013
A67: Gisela | B67: Schmid | C67: 19931 | D67: 25196 | E67: 10092 | F67: =SUM(Tabelle1[[#This Row],[1. Quartal]:[3. Quartal]]) -> 55219
A68: Maria | B68: Schwab | C68: 14775 | D68: 24743 | E68: 19491 | F68: =SUM(Tabelle1[[#This Row],[1. Quartal]:[3. Quartal]]) -> 59009
A69: Renate | B69: Thomasberger | C69: 20964 | D69: 23691 | E69: 5844 | F69: =SUM(Tabelle1[[#This Row],[1. Quartal]:[3. Quartal]]) -> 50499
A70: Renate | B70: Wenzling | C70: 18606 | D70: 23156 | E70: 7453 | F70: =SUM(Tabelle1[[#This Row],[1. Quartal]:[3. Quartal]]) -> 49215
A71: Barbara | B71: Bachernegg | C71: 7076 | D71: 21382 | E71: 11760 | F71: =SUM(Tabelle1[[#This Row],[1. Quartal]:[3. Quartal]]) -> 40218
A72: Britta | B72: Bauernfeind | C72: 22240 | D72: 8787 | E72: 6615 | F72: =SUM(Tabelle1[[#This Row],[1. Quartal]:[3. Quartal]]) -> 37642
A73: Christine | B73: Gerlesberg | C73: 7167 | D73: 15414 | E73: 25285 | F73: =SUM(Tabelle1[[#This Row],[1. Quartal]:[3. Quartal]]) -> 47866
A74: Heide | B74: Lehner | C74: 10091 | D74: 6645 | E74: 30571 | F74: =SUM(Tabelle1[[#This Row],[1. Quartal]:[3. Quartal]]) -> 47307
A75: Michaela | B75: Neuhofer | C75: 12257 | D75: 5727 | E75: 14240 | F75: =SUM(Tabelle1[[#This Row],[1. Quartal]:[3. Quartal]]) -> 32224
A76: Christian | B76: Platzer | C76: 16361 | D76: 24528 | E76: 5483 | F76: =SUM(Tabelle1[[#This Row],[1. Quartal]:[3. Quartal]]) -> 46372
A77: Edith | B77: Plötzl | C77: 8932 | D77: 21108 | E77: 31240 | F77: =SUM(Tabelle1[[#This Row],[1. Quartal]:[3. Quartal]]) -> 61280
A78: Ernestine | B78: Rameder | C78: 16782 | D78: 21133 | E78: 15618 | F78: =SUM(Tabelle1[[#This Row],[1. Quartal]:[3. Quartal]]) -> 53533
A79: Friederika | B79: Eder | C79: 17075 | D79: 29575 | E79: 14464 | F79: =SUM(Tabelle1[[#This Row],[1. Quartal]:[3. Quartal]]) -> 61114
A80: Hedwig | B80: Kachelman | C80: 8896 | D80: 26571 | E80: 22260 | F80: =SUM(Tabelle1[[#This Row],[1. Quartal]:[3. Quartal]]) -> 57727
A81: Hermine | B81: Karl | C81: 10860 | D81: 13367 | E81: 24091 | F81: =SUM(Tabelle1[[#This Row],[1. Quartal]:[3. Quartal]]) -> 48318
A82: Monika | B82: Mair | C82: 17462 | D82: 14077 | E82: 21530 | F82: =SUM(Tabelle1[[#This Row],[1. Quartal]:[3. Quartal]]) -> 53069
A83: Romana | B83: Meister | C83: 10443 | D83: 13093 | E83: 8346 | F83: =SUM(Tabelle1[[#This Row],[1. Quartal]:[3. Quartal]]) -> 31882
A84: Albert | B84: Paulick | C84: 18572 | D84: 28329 | E84: 26280 | F84: =SUM(Tabelle1[[#This Row],[1. Quartal]:[3. Quartal]]) -> 73181
A85: Andrea | B85: Wöginger | C85: 16843 | D85: 7568 | E85: 22230 | F85: =SUM(Tabelle1[[#This Row],[1. Quartal]:[3. Quartal]]) -> 46641
A86: Edeltraud | B86: Zintherhofer | C86: 7542 | D86: 7857 | E86: 25661 | F86: =SUM(Tabelle1[[#This Row],[1. Quartal]:[3. Quartal]]) -> 41060
A87: Eva | B87: Ackerl | C87: 17342 | D87: 18395 | E87: 8672 | F87: =SUM(Tabelle1[[#This Row],[1. Quartal]:[3. Quartal]]) -> 44409
A88: Gabrielle | B88: Danner | C88: 6914 | D88: 10910 | E88: 11450 | F88: =SUM(Tabelle1[[#This Row],[1. Quartal]:[3. Quartal]]) -> 29274
A89: Ingrid | B89: Durstberger | C89: 25632 | D89: 26749 | E89: 7373 | F89: =SUM(Tabelle1[[#This Row],[1. Quartal]:[3. Quartal]]) -> 59754
A90: Brigitte | B90: Elalamie | C90: 24870 | D90: 6242 | E90: 29274 | F90: =SUM(Tabelle1[[#This Row],[1. Quartal]:[3. Quartal]]) -> 60386
A91: Franz | B91: Gassner | C91: 20650 | D91: 18013 | E91: 7126 | F91: =SUM(Tabelle1[[#This Row],[1. Quartal]:[3. Quartal]]) -> 45789
A92: Hanna | B92: Haider | C92: 18061 | D92: 20478 | E92: 9998 | F92: =SUM(Tabelle1[[#This Row],[1. Quartal]:[3. Quartal]]) -> 48537
A93: Judith | B93: Jöchtl | C93: 15778 | D93: 10571 | E93: 18253 | F93: =SUM(Tabelle1[[#This Row],[1. Quartal]:[3. Quartal]]) -> 44602
A94: Martina | B94: Krauk | C94: 10797 | D94: 13769 | E94: 19799 | F94: =SUM(Tabelle1[[#This Row],[1. Quartal]:[3. Quartal]]) -> 44365
A95: Ottilie | B95: Krempl | C95: 21685 | D95: 5793 | E95: 30976 | F95: =SUM(Tabelle1[[#This Row],[1. Quartal]:[3. Quartal]]) -> 58454
A96: Roswitha | B96: Schranz | C96: 10651 | D96: 29109 | E96: 26501 | F96: =SUM(Tabelle1[[#This Row],[1. Quartal]:[3. Quartal]]) -> 66261
A97: Caroline | B97: Siebenbrunner | C97: 12637 | D97: 17079 | E97: 9960 | F97: =SUM(Tabelle1[[#This Row],[1. Quartal]:[3. Quartal]]) -> 39676
A98: Elfriede | B98: Aicher | C98: 21720 | D98: 30593 | E98: 26706 | F98: =SUM(Tabelle1[[#This Row],[1. Quartal]:[3. Quartal]]) -> 79019
A99: Eva | B99: Bergauer | C99: 25051 | D99: 26291 | E99: 24459 | F99: =SUM(Tabelle1[[#This Row],[1. Quartal]:[3. Quartal]]) -> 75801
A100: Marianne | B100: Eisenhuber | C100: 19743 | D100: 15393 | E100: 30456 | F100: =SUM(Tabelle1[[#This Row],[1. Quartal]:[3. Quartal]]) -> 65592
A101: Michaela | B101: Hambach | C101: 24694 | D101: 19624 | E101: 31365 | F101: =SUM(Tabelle1[[#This Row],[1. Quartal]:[3. Quartal]]) -> 75683
A102: Resi | B102: Krosch | C102: 23669 | D102: 17081 | E102: 15555 | F102: =SUM(Tabelle1[[#This Row],[1. Quartal]:[3. Quartal]]) -> 56305
A103: Helga | B103: Kratschmayr | C103: 10136 | D103: 12436 | E103: 20186 | F103: =SUM(Tabelle1[[#This Row],[1. Quartal]:[3. Quartal]]) -> 42758
A104: Karin | B104: Mayr | C104: 14016 | D104: 28020 | E104: 21635 | F104: =SUM(Tabelle1[[#This Row],[1. Quartal]:[3. Quartal]]) -> 63671
A105: Lucia | B105: Mittermaier | C105: 21489 | D105: 15131 | E105: 23166 | F105: =SUM(Tabelle1[[#This Row],[1. Quartal]:[3. Quartal]]) -> 59786
A106: Magdalena | B106: Oblinger | C106: 16216 | D106: 24458 | E106: 30691 | F106: =SUM(Tabelle1[[#This Row],[1. Quartal]:[3. Quartal]]) -> 71365
A107: Renate | B107: Wimmer | C107: 5752 | D107: 26749 | E107: 13443 | F107: =SUM(Tabelle1[[#This Row],[1. Quartal]:[3. Quartal]]) -> 45944
A108: Ute | B108: Breitfuß | C108: 13864 | D108: 24950 | E108: 6911 | F108: =SUM(Tabelle1[[#This Row],[1. Quartal]:[3. Quartal]]) -> 45725
A109: Annemarie | B109: Dünsern | C109: 7454 | D109: 13343 | E109: 28858 | F109: =SUM(Tabelle1[[#This Row],[1. Quartal]:[3. Quartal]]) -> 49655
A110: Christine | B110: Krämer | C110: 20549 | D110: 11195 | E110: 18584 | F110: =SUM(Tabelle1[[#This Row],[1. Quartal]:[3. Quartal]]) -> 50328
A111: Eva | B111: Lindenberger | C111: 17178 | D111: 21610 | E111: 12405 | F111: =SUM(Tabelle1[[#This Row],[1. Quartal]:[3. Quartal]]) -> 51193
A112: Hildegard | B112: Resch | C112: 9852 | D112: 14325 | E112: 31314 | F112: =SUM(Tabelle1[[#This Row],[1. Quartal]:[3. Quartal]]) -> 55491
A113: Inge | B113: Schuhmann | C113: 21917 | D113: 28077 | E113: 6172 | F113: =SUM(Tabelle1[[#This Row],[1. Quartal]:[3. Quartal]]) -> 56166
A114: Leopoldine | B114: Woitsche | C114: 24748 | D114: 26363 | E114: 6381 | F114: =SUM(Tabelle1[[#This Row],[1. Quartal]:[3. Quartal]]) -> 57492
A115: Renate | B115: Zeintl | C115: 12074 | D115: 19346 | E115: 29053 | F115: =SUM(Tabelle1[[#This Row],[1. Quartal]:[3. Quartal]]) -> 60473
A116: Rosa | B116: Altmann | C116: 21816 | D116: 7560 | E116: 27126 | F116: =SUM(Tabelle1[[#This Row],[1. Quartal]:[3. Quartal]]) -> 56502
A117: Alexandra | B117: Cnass | C117: 11079 | D117: 13975 | E117: 19359 | F117: =SUM(Tabelle1[[#This Row],[1. Quartal]:[3. Quartal]]) -> 44413
A118: Christine | B118: Maier | C118: 21437 | D118: 8059 | E118: 7551 | F118: =SUM(Tabelle1[[#This Row],[1. Quartal]:[3. Quartal]]) -> 37047
A119: Erika | B119: Meng | C119: 21651 | D119: 25881 | E119: 24604 | F119: =SUM(Tabelle1[[#This Row],[1. Quartal]:[3. Quartal]]) -> 72136
A120: Helga | B120: Neißl | C120: 20479 | D120: 26400 | E120: 10051 | F120: =SUM(Tabelle1[[#This Row],[1. Quartal]:[3. Quartal]]) -> 56930
A121: Ingeborg | B121: Ofner | C121: 13262 | D121: 17625 | E121: 13659 | F121: =SUM(Tabelle1[[#This Row],[1. Quartal]:[3. Quartal]]) -> 44546
A122: Kurt-Werner | B122: Seidler | C122: 6340 | D122: 27537 | E122: 29459 | F122: =SUM(Tabelle1[[#This Row],[1. Quartal]:[3. Quartal]]) -> 63336
A123: Sabine | B123: Weinmann | C123: 5594 | D123: 30506 | E123: 30356 | F123: =SUM(Tabelle1[[#This Row],[1. Quartal]:[3. Quartal]]) -> 66456
A124: Sieghilde | B124: Zarzer | C124: 21627 | D124: 24790 | E124: 22210 | F124: =SUM(Tabelle1[[#This Row],[1. Quartal]:[3. Quartal]]) -> 68627
A125: Siglinde | B125: Altenstrasser | C125: 12803 | D125: 25350 | E125: 11710 | F125: =SUM(Tabelle1[[#This Row],[1. Quartal]:[3. Quartal]]) -> 49863
A126: Ulrike | B126: Freudenthaler | C126: 8056 | D126: 15906 | E126: 13640 | F126: =SUM(Tabelle1[[#This Row],[1. Quartal]:[3. Quartal]]) -> 37602
A127: Ulrike | B127: König | C127: 17192 | D127: 19297 | E127: 21289 | F127: =SUM(Tabelle1[[#This Row],[1. Quartal]:[3. Quartal]]) -> 57778
A128: Adelheid | B128: Mayer | C128: 25531 | D128: 9533 | E128: 17140 | F128: =SUM(Tabelle1[[#This Row],[1. Quartal]:[3. Quartal]]) -> 52204
A129: Irmgard | B129: Sonnleitner | C129: 21569 | D129: 19084 | E129: 30861 | F129: =SUM(Tabelle1[[#This Row],[1. Quartal]:[3. Quartal]]) -> 71514
A130: Elsa | B130: Weißböck | C130: 9542 | D130: 9246 | E130: 26681 | F130: =SUM(Tabelle1[[#This Row],[1. Quartal]:[3. Quartal]]) -> 45469
A131: Judith | B131: Birklbauer | C131: 17842 | D131: 6472 | E131: 12021 | F131: =SUM(Tabelle1[[#This Row],[1. Quartal]:[3. Quartal]]) -> 36335
A132: Andrea | B132: Fidler | C132: 23329 | D132: 9560 | E132: 12824 | F132: =SUM(Tabelle1[[#This Row],[1. Quartal]:[3. Quartal]]) -> 45713
A133: Elenore | B133: Frim | C133: 11908 | D133: 21274 | E133: 16430 | F133: =SUM(Tabelle1[[#This Row],[1. Quartal]:[3. Quartal]]) -> 49612
A134: Elke | B134: Grassmann | C134: 20349 | D134: 24032 | E134: 14403 | F134: =SUM(Tabelle1[[#This Row],[1. Quartal]:[3. Quartal]]) -> 58784
A135: Ingrid | B135: Linke | C135: 7058 | D135: 26152 | E135: 31169 | F135: =SUM(Tabelle1[[#This Row],[1. Quartal]:[3. Quartal]]) -> 64379
A136: Katrin | B136: Puritscher | C136: 19752 | D136: 8319 | E136: 29952 | F136: =SUM(Tabelle1[[#This Row],[1. Quartal]:[3. Quartal]]) -> 58023
A137: Roswitha | B137: Skoll | C137: 18884 | D137: 25669 | E137: 12216 | F137: =SUM(Tabelle1[[#This Row],[1. Quartal]:[3. Quartal]]) -> 56769
A138: Brigitte | B138: Wittknowkie | C138: 18363 | D138: 21439 | E138: 11278 | F138: =SUM(Tabelle1[[#This Row],[1. Quartal]:[3. Quartal]]) -> 51080
A139: Caroline | B139: Bach | C139: 8526 | D139: 22906 | E139: 20467 | F139: =SUM(Tabelle1[[#This Row],[1. Quartal]:[3. Quartal]]) -> 51899
A140: Claudia | B140: Deinhammera | C140: 16455 | D140: 27953 | E140: 27024 | F140: =SUM(Tabelle1[[#This Row],[1. Quartal]:[3. Quartal]]) -> 71432
A141: Gertraud | B141: Doppelbauer | C141: 8121 | D141: 26875 | E141: 27971 | F141: =SUM(Tabelle1[[#This Row],[1. Quartal]:[3. Quartal]]) -> 62967
A142: Gisella | B142: Glüxmann | C142: 20196 | D142: 29131 | E142: 28381 | F142: =SUM(Tabelle1[[#This Row],[1. Quartal]:[3. Quartal]]) -> 77708
A143: Ingrid | B143: Haring | C143: 18070 | D143: 30427 | E143: 12169 | F143: =SUM(Tabelle1[[#This Row],[1. Quartal]:[3. Quartal]]) -> 60666
A144: Margarethe | B144: Jungmayr | C144: 6121 | D144: 22317 | E144: 24703 | F144: =SUM(Tabelle1[[#This Row],[1. Quartal]:[3. Quartal]]) -> 53141
A145: Maria | B145: Schmoll | C145: 10859 | D145: 6977 | E145: 5613 | F145: =SUM(Tabelle1[[#This Row],[1. Quartal]:[3. Quartal]]) -> 23449
A146: Wolfgang | B146: Schultz | C146: 9901 | D146: 23715 | E146: 8597 | F146: =SUM(Tabelle1[[#This Row],[1. Quartal]:[3. Quartal]]) -> 42213
A147: Gertraud | B147: Schweighuber | C147: 20517 | D147: 14028 | E147: 28699 | F147: =SUM(Tabelle1[[#This Row],[1. Quartal]:[3. Quartal]]) -> 63244
A148: Hans | B148: Wallerstorfer | C148: 9265 | D148: 6700 | E148: 12069 | F148: =SUM(Tabelle1[[#This Row],[1. Quartal]:[3. Quartal]]) -> 28034
A149: Helga | B149: Wanderer | C149: 14508 | D149: 15278 | E149: 6296 | F149: =SUM(Tabelle1[[#This Row],[1. Quartal]:[3. Quartal]]) -> 36082
A150: Monika | B150: Auer | C150: 16110 | D150: 27298 | E150: 29812 | F150: =SUM(Tabelle1[[#This Row],[1. Quartal]:[3. Quartal]]) -> 73220
A151: Renate | B151: Hartl | C151: 21360 | D151: 30690 | E151: 9963 | F151: =SUM(Tabelle1[[#This Row],[1. Quartal]:[3. Quartal]]) -> 62013
A152: Renate | B152: Hauder | C152: 23298 | D152: 17916 | E152: 6079 | F152: =SUM(Tabelle1[[#This Row],[1. Quartal]:[3. Quartal]]) -> 47293
A153: Renate | B153: Holzer | C153: 12671 | D153: 24916 | E153: 11322 | F153: =SUM(Tabelle1[[#This Row],[1. Quartal]:[3. Quartal]]) -> 48909
A154: Romana | B154: Kaiser | C154: 18785 | D154: 14079 | E154: 14069 | F154: =SUM(Tabelle1[[#This Row],[1. Quartal]:[3. Quartal]]) -> 46933
A155: Ursula | B155: Kreys | C155: 6571 | D155: 14553 | E155: 27175 | F155: =SUM(Tabelle1[[#This Row],[1. Quartal]:[3. Quartal]]) -> 48299
A156: Waltraud | B156: Kristen | C156: 25682 | D156: 21638 | E156: 13068 | F156: =SUM(Tabelle1[[#This Row],[1. Quartal]:[3. Quartal]]) -> 60388
A157: Anneliese | B157: Kurfner | C157: 24589 | D157: 6670 | E157: 24954 | F157: =SUM(Tabelle1[[#This Row],[1. Quartal]:[3. Quartal]]) -> 56213
A158: Astrid | B158: Rost | C158: 11156 | D158: 14173 | E158: 10440 | F158: =SUM(Tabelle1[[#This Row],[1. Quartal]:[3. Quartal]]) -> 35769
A159: Christina | B159: Schuckert | C159: 25621 | D159: 8412 | E159: 11712 | F159: =SUM(Tabelle1[[#This Row],[1. Quartal]:[3. Quartal]]) -> 45745
A160: Elfriede | B160: Böhm | C160: 23152 | D160: 28974 | E160: 30535 | F160: =SUM(Tabelle1[[#This Row],[1. Quartal]:[3. Quartal]]) -> 82661
A161: Gerda | B161: Hackl | C161: 6001 | D161: 5741 | E161: 8238 | F161: =SUM(Tabelle1[[#This Row],[1. Quartal]:[3. Quartal]]) -> 19980
A162: Helene | B162: Issa | C162: 16811 | D162: 13789 | E162: 23658 | F162: =SUM(Tabelle1[[#This Row],[1. Quartal]:[3. Quartal]]) -> 54258
A163: Ingrid | B163: Limberger | C163: 8564 | D163: 20074 | E163: 8007 | F163: =SUM(Tabelle1[[#This Row],[1. Quartal]:[3. Quartal]]) -> 36645
A164: Rosa | B164: Müller | C164: 22239 | D164: 26225 | E164: 28872 | F164: =SUM(Tabelle1[[#This Row],[1. Quartal]:[3. Quartal]]) -> 77336
A165: Susanne | B165: Preimfalk | C165: 20073 | D165: 8642 | E165: 28369 | F165: =SUM(Tabelle1[[#This Row],[1. Quartal]:[3. Quartal]]) -> 57084
A166: Ursula | B166: Schäufler | C166: 16432 | D166: 16953 | E166: 7728 | F166: =SUM(Tabelle1[[#This Row],[1. Quartal]:[3. Quartal]]) -> 41113
A167: Brigitte | B167: Schick | C167: 14527 | D167: 22290 | E167: 25558 | F167: =SUM(Tabelle1[[#This Row],[1. Quartal]:[3. Quartal]]) -> 62375
A168: Eveline | B168: Annunziata | C168: 13002 | D168: 18103 | E168: 5254 | F168: =SUM(Tabelle1[[#This Row],[1. Quartal]:[3. Quartal]]) -> 36359
A169: Inge | B169: Baumgartner | C169: 11564 | D169: 22613 | E169: 11585 | F169: =SUM(Tabelle1[[#This Row],[1. Quartal]:[3. Quartal]]) -> 45762
A170: Maria | B170: Finster | C170: 6031 | D170: 15271 | E170: 29659 | F170: =SUM(Tabelle1[[#This Row],[1. Quartal]:[3. Quartal]]) -> 50961
A171: Ingrid | B171: Fischer | C171: 7223 | D171: 26147 | E171: 25006 | F171: =SUM(Tabelle1[[#This Row],[1. Quartal]:[3. Quartal]]) -> 58376
A172: Kornelia | B172: Greinecker | C172: 10558 | D172: 29787 | E172: 17726 | F172: =SUM(Tabelle1[[#This Row],[1. Quartal]:[3. Quartal]]) -> 58071
A173: Manuela | B173: Haider | C173: 16729 | D173: 22508 | E173: 26871 | F173: =SUM(Tabelle1[[#This Row],[1. Quartal]:[3. Quartal]]) -> 66108
A174: Margit | B174: Ketzer | C174: 14150 | D174: 17670 | E174: 14060 | F174: =SUM(Tabelle1[[#This Row],[1. Quartal]:[3. Quartal]]) -> 45880
A175: Maria | B175: Riedler | C175: 11950 | D175: 27271 | E175: 17233 | F175: =SUM(Tabelle1[[#This Row],[1. Quartal]:[3. Quartal]]) -> 56454
A176: Regina | B176: Schopf | C176: 19735 | D176: 26263 | E176: 21478 | F176: =SUM(Tabelle1[[#This Row],[1. Quartal]:[3. Quartal]]) -> 67476
A177: Sieglinde | B177: Stockbauer | C177: 12623 | D177: 27215 | E177: 24152 | F177: =SUM(Tabelle1[[#This Row],[1. Quartal]:[3. Quartal]]) -> 63990
A178: Stefanie | B178: Wolf | C178: 12698 | D178: 23574 | E178: 7623 | F178: =SUM(Tabelle1[[#This Row],[1. Quartal]:[3. Quartal]]) -> 43895
A179: Ulrike | B179: Zimmerl | C179: 10826 | D179: 31396 | E179: 12578 | F179: =SUM(Tabelle1[[#This Row],[1. Quartal]:[3. Quartal]]) -> 54800
A180: Veronika | B180: Auer | C180: 7450 | D180: 7975 | E180: 26415 | F180: =SUM(Tabelle1[[#This Row],[1. Quartal]:[3. Quartal]]) -> 41840
A181: Anita | B181: Brandstetter | C181: 11285 | D181: 14840 | E181: 30665 | F181: =SUM(Tabelle1[[#This Row],[1. Quartal]:[3. Quartal]]) -> 56790
A182: Bernadette | B182: Rainer | C182: 14225 | D182: 13818 | E182: 16054 | F182: =SUM(Tabelle1[[#This Row],[1. Quartal]:[3. Quartal]]) -> 44097
A183: Brigitte | B183: Schulz | C183: 19640 | D183: 9266 | E183: 10444 | F183: =SUM(Tabelle1[[#This Row],[1. Quartal]:[3. Quartal]]) -> 39350
A184: Christa | B184: Daspelgruber | C184: 17782 | D184: 6391 | E184: 17706 | F184: =SUM(Tabelle1[[#This Row],[1. Quartal]:[3. Quartal]]) -> 41879
A185: Christine | B185: Gölles | C185: 5489 | D185: 18289 | E185: 28255 | F185: =SUM(Tabelle1[[#This Row],[1. Quartal]:[3. Quartal]]) -> 52033
A186: Cornelia | B186: Greif | C186: 9403 | D186: 15841 | E186: 8087 | F186: =SUM(Tabelle1[[#This Row],[1. Quartal]:[3. Quartal]]) -> 33331
A187: Evelin | B187: Hardegger | C187: 6714 | D187: 16160 | E187: 12713 | F187: =SUM(Tabelle1[[#This Row],[1. Quartal]:[3. Quartal]]) -> 35587
A188: Friedarike | B188: Haunschmid | C188: 10940 | D188: 22454 | E188: 30003 | F188: =SUM(Tabelle1[[#This Row],[1. Quartal]:[3. Quartal]]) -> 63397
A189: Josef | B189: Humenberger | C189: 20480 | D189: 13682 | E189: 14454 | F189: =SUM(Tabelle1[[#This Row],[1. Quartal]:[3. Quartal]]) -> 48616
A190: Josefa | B190: Kajima | C190: 16936 | D190: 21940 | E190: 13628 | F190: =SUM(Tabelle1[[#This Row],[1. Quartal]:[3. Quartal]]) -> 52504
A191: Michaela | B191: Leidl | C191: 14324 | D191: 18620 | E191: 22519 | F191: =SUM(Tabelle1[[#This Row],[1. Quartal]:[3. Quartal]]) -> 55463
A192: Petra | B192: Beham | C192: 15078 | D192: 18728 | E192: 14051 | F192: =SUM(Tabelle1[[#This Row],[1. Quartal]:[3. Quartal]]) -> 47857
A193: Tamara | B193: Pargfrieder | C193: 8551 | D193: 17294 | E193: 19903 | F193: =SUM(Tabelle1[[#This Row],[1. Quartal]:[3. Quartal]]) -> 45748
A194: Ulrike | B194: Peterseil | C194: 19636 | D194: 10235 | E194: 9146 | F194: =SUM(Tabelle1[[#This Row],[1. Quartal]:[3. Quartal]]) -> 39017
A195: Claudia | B195: Schallmeier | C195: 15074 | D195: 22360 | E195: 24266 | F195: =SUM(Tabelle1[[#This Row],[1. Quartal]:[3. Quartal]]) -> 61700
A196: Gabriele | B196: Schleier | C196: 10962 | D196: 17297 | E196: 23279 | F196: =SUM(Tabelle1[[#This Row],[1. Quartal]:[3. Quartal]]) -> 51538
A197: Josefine | B197: Strasser | C197: 20585 | D197: 12131 | E197: 12074 | F197: =SUM(Tabelle1[[#This Row],[1. Quartal]:[3. Quartal]]) -> 44790
A198: Margarete | B198: Taschner | C198: 15566 | D198: 19799 | E198: 15772 | F198: =SUM(Tabelle1[[#This Row],[1. Quartal]:[3. Quartal]]) -> 51137
A199: Andrea | B199: Wimmer | C199: 15947 | D199: 11901 | E199: 20919 | F199: =SUM(Tabelle1[[#This Row],[1. Quartal]:[3. Quartal]]) -> 48767
A200: Edith | B200: Wührer | C200: 20906 | D200: 9278 | E200: 10275 | F200: =SUM(Tabelle1[[#This Row],[1. Quartal]:[3. Quartal]]) -> 40459
A201: Margareta | B201: Wurst | C201: 23162 | D201: 12412 | E201: 21456 | F201: =SUM(Tabelle1[[#This Row],[1. Quartal]:[3. Quartal]]) -> 57030
... 39 more rows
